Cogmind - Beta 16.1 @@@ ROGUE MODE // 2026.03.05 @ 03:52:11 Player: Scringis Result: Destroyed by D-53 Grenadier with Mini Grenade Launcher Performance ------------- Evolutions (0) 0 Regions Visited (2) 400 Robots Destroyed (19) 95 Value Destroyed (414) 414 Prototype IDs (0) 0 Alien Tech Used (0) 0 Bonus (0) 0 TOTAL SCORE: 909 Bonus ------- None Cogmind --------- Core Integrity 0/250 Matter 204/300 Energy 100/100 System Corruption 0% Temperature Cool (20) Movement Treading (160) Location -10/Mines Parts ------- > --- POWER (1) -------- (None) > --- PROPULSION (2) --- Light Treads > --- UTILITY (2) ------ Medium Storage Unit > --- WEAPON (2) ------- Grenade Launcher > --- INVENTORY (10) --- Light Ion Engine Light Ion Engine Light Treads Improved Heat Sink Assault Rifle Assault Rifle Light Assault Rifle Light Assault Rifle Peak State ------------ > --- POWER ------------ Ion Engine > --- PROPULSION ------- Light Treads Light Treads > --- UTILITY ---------- Medium Storage Unit Hardened Light Armor Plating > --- WEAPON ----------- Assault Rifle Assault Rifle > --- INVENTORY -------- Light Ion Engine Light Treads Improved Heat Sink Assault Rifle Light Assault Rifle Light Assault Rifle Grenade Launcher Grenade Launcher [Rating: 9] Favorites ----------- Power Ion Engine Engine Ion Engine Propulsion Light Treads Treads Light Treads Wheel Compact Wheel Utility Medium Storage Unit Storage Medium Storage Unit Protection Hardened Light Armor Plating Weapon Assault Rifle Energy Gun EM Pulse Gun Ballistic Gun Assault Rifle Launcher Grenade Launcher Build | -11 -10 -10 ------- Run | Yrd Mat Min Slots Evolved . | . . . Power . | . . . Propulsion . | . . . Utility . | . . . Weapon . | . . . Parts Attached 19 | 8 9 2 Power 3 | 1 2 . Engine 3 | 1 2 . Core . | . . . Reactor . | . . . Propulsion 4 | 4 . . Treads 2 | 2 . . Leg . | . . . Wheel 2 | 2 . . Hover . | . . . Flight . | . . . Utility 4 | 1 3 . Device . | . . . Storage 2 | 1 1 . Processor . | . . . Hackware . | . . . Protection 2 | . 2 . Artifact . | . . . Weapon 8 | 2 4 2 Energy Gun 2 | 1 1 . Energy Cannon . | . . . Ballistic Gun 4 | 1 3 . Ballistic Cannon . | . . . Launcher 2 | . . 2 Special Weapon . | . . . Impact Weapon . | . . . Slashing Weapon . | . . . Piercing Weapon . | . . . Special Melee Weapon . | . . . Unidentified Prototypes . | . . . Parts Lost 12 | . 6 6 Power 3 | . 2 1 Propulsion 2 | . 1 1 Utility 2 | . 1 1 Weapon 5 | . 2 3 Highest Loss Streak 6 | . 4 6 To Critical Strikes . | . . . Average Backups 5 | 2 5 8 Power . | . . 1 Propulsion 1 | . 1 1 Utility . | . . 1 Weapon 3 | 1 2 5 Tool/Special . | . . . Unused Backups 9 | . 3 6 Power 1 | . . 1 Propulsion . | . . . Utility 2 | . 1 1 Weapon 4 | . . 4 Tool/Special 2 | . 2 . Average Slot Usage (%) 95 | . 92 100 Engine 13 | . 12 14 Treads 15 | . 8 28 Wheel 12 | . 18 . Storage 14 | . 14 14 Protection 11 | . 9 14 Energy Gun 5 | . 8 . Ballistic Gun 22 | . 19 27 Peak Build Rating 9 | 6 8 9 Average Rating 7 | 4 7 8 On Entrance 4 | . 6 8 Avg Prop Armor Cover (%) 2 | . 2 . Naked Turns . | . . . Heaviest Build 24 | 14 24 24 Greatest Support 40 | 40 40 40 Greatest Overweight (x) 7 | . 7 . Average Overweight (x) . | . . . Largest Inventory Capacity 10 | 8 10 10 Average Capacity 9 | 5 9 10 Most Carried 10 | 5 9 10 Average Carried 6 | 2 5 8 Final Capacity 10 | 8 10 10 Final Carried 8 | 4 7 8 Class Distribution -------------------- 100% | Mutant Dominant Class ---------------- Mutant | -10/Materials Mutant | -10/Mines Resources | -11 -10 -10 ----------- Run | Yrd Mat Min Matter Collected 613 | 246 271 96 Remotely . | . . . Salvage Created 647 | . 595 52 Parts 39 | . 38 1 Haulers Intercepted 1 | . 1 . Recyclers Shooed 2 | . 2 . Parts Field Recycled . | . . . Retrieved Matter . | . . . Parts Self-Destructed . | . . . Prevented . | . . . Parts Restored . | . . . Kills | -11 -10 -10 ------- Run | Yrd Mat Min Combat Hostiles Destroyed 14 | . 14 . Guns 12 | . 12 . AOE 2 | . 2 . Classes Destroyed 6 | . 6 . Hauler 1 | . 1 . Recycler 2 | . 1 1 Operator 1 | . 1 . Watcher 1 | . 1 . Swarmer 6 | . 6 . Grunt 8 | . 8 . Best Kill Streak 4 | . 4 1 Combat Bots Only 4 | . 4 . Max Kills in Single Turn 2 | . 2 1 Gunslinging 1 | . 1 . Exploded 2 | . 2 . Melee . | . . . Uniques/NPCs Destroyed . | . . . Combat | -11 -10 -10 -------- Run | Yrd Mat Min Hostile Shots Fired 107 | . 93 14 Missed 14 | . 11 3 Hits 93 | . 82 11 Projectile 93 | . 82 11 AOE 11 | . . 11 Damage Taken 1555 | . 951 604 Core 269 | . 137 132 Absorbed by Shields . | . . . Core Remaining (%) 100 | 100 . . Volleys Fired 50 | . 43 7 Largest 2 | . 2 2 Hottest 60 | . 60 60 Shots Fired 95 | . 83 12 Gun 85 | . 83 2 Cannon . | . . . Launcher 10 | . . 10 Special . | . . . Kinetic 69 | . 67 2 Thermal . | . . . Explosive 10 | . . 10 Electromagnetic 16 | . 16 . Robot Hit Streak 10 | . 7 10 Robot Miss Streak 2 | . 2 1 Penetration Max . | . . . Secondary Targets 4 | . 4 . Max Gunslinging Chain 1 | . 1 . Shots Hit Robots 69 | . 58 11 Core Hits 37 | . 27 10 Critical Kills 1 | . 1 . Critical Parts Destroyed 1 | . 1 . Critical Strikes 2 | . 2 . Destroy 2 | . 2 . Melee Attacks . | . . . Impact . | . . . Slashing . | . . . Piercing . | . . . Sneak Attacks . | . . . Combat Hostiles . | . . . Follow-up Attacks . | . . . Damage Inflicted 1057 | . 888 169 Guns 749 | . 736 13 Cannons . | . . . Explosions 308 | . 152 156 Melee . | . . . Ramming . | . . . Kinetic 575 | . 562 13 Thermal 152 | . 152 . Explosive 156 | . . 156 Electromagnetic 174 | . 174 . Impact . | . . . Slashing . | . . . Piercing . | . . . Highest Corruption . | . . . Average Corruption . | . . . Corruption Purged . | . . . Corruption Blocked . | . . . Overload Shots . | . . . Overflow Damage 13 | . 7 6 Projectiles . | . . . Explosions 13 | . 7 6 Melee . | . . . Knockbacks . | . . . Impact . | . . . Kinetic . | . . . Secondary . | . . . Self-Inflicted Damage 224 | . 78 146 Shots 11 | . 2 9 Rammed 1 | 1 . . Targets Rammed 1 | 1 . . Kicked . | . . . Crushed . | . . . Highest Temperature 112 | . 112 30 Average Temperature 39 | . 42 24 Received Heat Transfer 354 | . 354 . Siege Activations . | . . . Martial Activations . | . . . Shielding Activations . | . . . Robots Disrupted . | . . . Combat Hostiles . | . . . Robots Corrupted . | . . . Combat Hostiles . | . . . Parts Fried 1 | . 1 . Impact Corruptions . | . . . Robots Melted . | . . . Combat Hostiles . | . . . Parts Melted . | . . . Heat Transferred 250 | . 250 . Parts Sabotaged . | . . . Parts Stolen . | . . . Parts Stripped . | . . . Power Chain Reactions 3 | . 3 . Alert | -11 -10 -10 ------- Run | Yrd Mat Min Maximum Alert Level . | . . . Low Security (%) 100 | 100 100 100 Level 1 . | . . . Level 2 . | . . . Level 3 . | . . . Level 4 . | . . . Level 5 . | . . . High Security . | . . . Max Security . | . . . Peak Influence 122 | . 122 37 Initial 37 | . . 37 Average 30 | . 48 4 Influence Increases 435 | . 425 10 Destroy 0b10 Robot/C 280 | . 280 . Destroy 0b10 Robot/NC 25 | . 20 5 Destroy Leader 64 | . 64 . Successful Hack 4 | . 4 . Disable Machine 15 | . 15 . Destroy Structure 17 | . 12 5 Lose Combat Pursuer 30 | . 30 . Influence Decreases 435 | . 327 108 Entered New Map 61 | . . 61 Time Decay 304 | . 267 37 Lost Part 70 | . 60 10 Squads Dispatched 2 | . 2 . Investigation 1 | . 1 . Extermination . | . . . Reinforcement 1 | . 1 . Assault . | . . . Garrison . | . . . Intercept . | . . . Searches Triggered . | . . . Construction Impeded . | . . . Haulers Reinforced . | . . . Active Scanning Responses . | . . . Cargo Convoy Interrupts . | . . . Stealth | -11 -10 -10 --------- Run | Yrd Mat Min Distress Signals 1 | . 1 . Communications Jammed . | . . . Distress Signals . | . . . Times Spotted 23 | . 21 2 Peak Tracking Total 5 | . 5 2 Tactical Retreats 2 | . 2 . Traps | -11 -10 -10 ------- Run | Yrd Mat Min Traps Triggered 2 | . 2 . Indirectly . | . . . Trap Hack Attempts . | . . . Triggered . | . . . Disarmed . | . . . Reprogrammed . | . . . Reused . | . . . Traps Extracted . | . . . Installed . | . . . Triggered . | . . . Machines | -11 -10 -10 ---------- Run | Yrd Mat Min Machines Disabled 1 | . 1 . Max in Single Turn 1 | . 1 . Machines Repaired . | . . . Machines Dismantled . | . . . Machines Sabotaged . | . . . Overloaded Fab Kills . | . . . Hacking | -11 -10 -10 --------- Run | Yrd Mat Min Machines Accessed 4 | . 4 . Terminals 4 | . 4 . Fabricators . | . . . Repair Stations . | . . . Recycling Units . | . . . Scanalyzers . | . . . Garrison Access . | . . . Total Hacks 9 | . 9 . Successful 6 | . 6 . Failed 3 | . 3 . Catastrophic . | . . . Database Lockouts . | . . . Manual 9 | . 9 . Terminals 9 | . 9 . Fabricators . | . . . Repair Stations . | . . . Recycling Units . | . . . Scanalyzers . | . . . Garrison Access . | . . . Terminal Hacks 1 | . 1 . Branch Access Points 1 | . 1 . Fabricator Hacks . | . . . Repair Station Hacks . | . . . Recycling Unit Hacks . | . . . Scanalyzer . | . . . Garrison Access Hacks . | . . . Unauthorized Hacks 5 | . 5 . Terminals 5 | . 5 . Botnet 4 | . 4 . Operators 1 | . 1 . Fabricators . | . . . Repair Stations . | . . . Recycling Units . | . . . Scanalyzers . | . . . Garrison Access . | . . . Data Cores Recovered . | . . . Used . | . . . Hacking Detections 4 | . 4 . Full Trace Events . | . . . Feedback Events . | . . . Feedback Blocked . | . . . Robot Schematics Acquired . | . . . Robots Built . | . . . Authchips . | . . . Time . | . . . Total Robot Build Rating . | . . . Part Schematics Acquired . | . . . Parts Built . | . . . Authchips . | . . . Time . | . . . Total Part Build Rating . | . . . Part Studies Acquired . | . . . Parts Repaired . | . . . Time . | . . . Parts Recycled . | . . . Recycled Matter . | . . . Retrieved Matter . | . . . Retrieved Components . | . . . Parts Scanalyzed . | . . . Part Schematics Acquired . | . . . Parts Damaged . | . . . Bothacking | -11 -10 -10 ------------ Run | Yrd Mat Min Used RIF Installer . | . . . Robots Hacked . | . . . Non-combat . | . . . Combat . | . . . Robot Hacks Applied . | . . . Relay Couplers Released . | . . . Fabnet Peak Effective % . | . . . Robots Rewired . | . . . Allies Hacked . | . . . Hacks Repelled . | . . . Allies | -11 -10 -10 -------- Run | Yrd Mat Min Total Allies . | . . . Largest Group . | . . . Highest-Rated Group . | . . . Highest-Rated Ally . | . . . Total Orders . | . . . Ally Attacks . | . . . Total Damage . | . . . Kills . | . . . Allies Corrupted . | . . . Allies Melted . | . . . Intel | -11 -10 -10 ------- Run | Yrd Mat Min Active Infowar (turns) . | . . . Robot Analysis Total . | . . . Derelict Logs Recovered . | . . . Drone Launches . | . . . Drone Recoveries . | . . . Exploration | -11 -10 -10 ------------- Run | Yrd Mat Min Turns Passed 1278 | 111 783 384 Spaces Moved 758 | 70 463 225 Core 12 | 11 1 . Treads 389 | 37 127 225 Legs . | . . . Wheels 357 | 22 335 . Hover . | . . . Flight . | . . . Fastest Speed 50 | 50 90 160 Average Speed 125 | 120 110 160 Slowest Speed 400 | 160 400 160 Overloaded Moves . | . . . Propulsion Burnouts . | . . . Robots Hopped . | . . . Potential Cave-ins . | . . . Cave-ins Triggered . | . . . Exploration Rate (%) 46 | 4 81 54 Regions Visited 2 Branch Regions 1 Pre-discovered Areas . | . . . Known Exits Taken 1 | . 1 . Unknown Exits Taken 1 | 1 . . Scrap Searched . | . . . Spaces Dug . | . . . Terrain Destroyed 26 | . 10 16 Melee . | . . . Projectile . | . . . AOE 26 | . 10 16 Terrain Rammed . | . . . Walls Destroyed . | . . . Machines Disabled . | . . . Actions | -11 -10 -10 --------- Run | Yrd Mat Min Total 988 | 95 655 238 Wait 112 | 7 105 . Move 757 | 70 462 225 Hop . | . . . Pick Up 33 | 10 20 3 Fast Attach . | . . . Attach 19 | 6 11 2 Detach . | . . . Swap 9 | 2 7 . Drop 7 | . 7 . Fire 50 | . 43 7 Melee . | . . . Ram . | . . . Kick . | . . . Crush . | . . . Escape Stasis . | . . . Rewire 1 | . . 1 Trap . | . . . Miscellaneous . | . . . Route ------- -11/Scrapyard -10/Materials (discovered 5 exits: [*Mat x2] / *Min x2 / [*Sub]) -10/Mines (discovered 1 exit: [*Mat]) History --------- Turn | Location | Event 16 | -11/Scrapyard | Discovered new exit (range 15) 112 | -11/Scrapyard | Entered Materials 136 | -10/Materials | Discovered new exit (range 14) 302 | -10/Materials | Build established: Mutant 329 | -10/Materials | Discovered new exit (range 16) 370 | -10/Materials | Discovered new exit (range 7) 438 | -10/Materials | Discovered new exit (range 15) 669 | -10/Materials | Lost 4 parts (1p1n1u1w) 775 | -10/Materials | Identified exit to Mines 824 | -10/Materials | Core integrity fell below 50% 895 | -10/Materials | Entered Mines 1062 | -10/Mines | Discovered new exit (range 9) 1205 | -10/Mines | Found a Scrap Suit stashed away for nefarious purposes 1219 | -10/Mines | Assembled infested the area 1271 | -10/Mines | Core integrity fell below 20% 1279 | -10/Mines | Destroyed by D-53 Grenadier with Mini Grenade Launcher Last Messages --------------- into the system." 01219_ ALERT: Infestation in the mines, dispatching Demolisher response squad. 01260_ C-45 Heavy ARC bursts open, deploying its payload. 01260_ D-53 Grenadier unfolds itself. 01260_ Assault Rifle destroyed. 01264_ Destroyed Com. Wheel. 01264_ R-06 Scavenger destroyed. 01265_ D-53 Grenadier destroyed. 01270_ The unstable cave ceiling collapses. 01270_ Hrd. Light Armor Plating destroyed. 01270_ Destroyed Hrd. Light Armor Plating. 01271_ The unstable cave ceiling collapses. 01273_ Lgt. Treads destroyed. 01276_ The unstable cave ceiling collapses. 01276_ Grenade Launcher destroyed. 01276_ Destroyed Grenade Launcher. 01277_ The unstable cave ceiling collapses. 01277_ Ion Engine destroyed. Map ----- +----------------------------------------------------+ | | | ?????????????????????????????? | | ???##????????????????????????? | | ?? ##???????????????????????? | | # #???????????????????????? | | ??????????????????????? | | ! ????????????????????????? | | !??????????????????????????? | | ?????????????????????????????? | | ????????????????????????##???? | | ???????????????????????# ##??? | | ??????????????????????# #??? | | ??????????????????#### #??? | | ?????????????????## #??? | | ?????????????????# #??? | | ?????????????????# """ #??? | | ??????????????????# """ #??? | | ???????????????????# """ #### | | ??????????????????## # | | ###???############# | | ##### | | ########### # | | #?????????#### d | | #######???????????# | | #?????????????????# | | #?????????????????# @ | | #?????????????????# | | #?????????????????# | | #???????????????? # | | ???????????????## ## | | ###????????????????# ##? | | ??????????????????# #?? | | ??????????????????# ?? | | ??????????????????# ! ?? | | ??????????????????## # ?? | | ???????????????????#### ?? | | ??????????????????????# ###? | | ??????????????????????# ###??? | | ??????????????????????# #??? | | ??????????????????????### #??? | | ????????????????????????# #??? | | ????????????????????????# #??? | | ????????????????????????# #??? | | ????????????????????????# #??? | | ????????????????????????# #??? | | ????????????????????????# #??? | | ????????????????????????# #??? | | #?????????????????????? #??? | | ???????????????????????? ]??? | | ???????????????????????? ??? | +----------------------------------------------------+ Best States ------------- Heat Dissipation 25 Energy Generation 10 Energy Capacity 250 Matter Stores 300 Matter Capacity 300 Sight Range 16 Terrain Scan Density 10 Armor Coverage 150 Evasion (%) 50 Recoil Reduction 2 Item Schematics ----------------- None Robot Schematics ------------------ None Fabricated ------------ Nothing Repaired ---------- Nothing Studied --------- None Alien Tech Used ----------------- None Achievements -------------- None Challenges ------------ None Game ------ Seed PiercingSupercompositeTether Manual? 0 Play Time 00:07:55 Cumulative 69.5 hours Start 2026.03.05 @ 03:45:24 End 2026.03.05 @ 03:52:11 Sessions 1 Manual Loads 0 Difficulty Rogue Special Mode None Game No. 178 Rogue 178 Adventurer 0 Explorer 0 Win Type - Total 0 Types 0/0/0/0/0/0/0/0/0/0 Lore% 34 Gallery% 35 Achievement% 29 Wizard Run 0 Options --------- Layout 1 ASCII 0 Keyboard 0 Movement Numpad Keybinds 0 Fullscreen 2 Font 24/Smallcaps Map View 50x35 Zoom Use 0% Tactical HUD 1 Map Filters NONE Filters NONE Steam 1 RUN: ef45e705-77e3-42e4-a93e-c061cb6c4d2c